fUST/lending_fUST_20250606
["ID","MTS","AMOUNT","RATE_DAILY","PERIOD"]
[364738097,1749223836401,-478.84257984,0.00019178,2]
[364738099,1749223836411,-440.0,0.00019178,2]
[364738101,1749223836420,-440.0,0.00019178,2]
[364738104,1749223836429,-440.0,0.00019178,2]
[364738105,1749223836439,-440.0,0.00019178,2]
[364738107,1749223836448,-440.88858106,0.00019178,2]
[364738109,1749223836458,-432.65054917,0.00019178,2]
[364738111,1749223836470,-440.0,0.00019178,2]
[364738113,1749223836480,-440.0,0.00019178,2]
[364738116,1749223836490,-440.0,0.00019178,2]
[364738118,1749223836499,-440.0,0.00019178,2]
[364738119,1749223836509,-440.0,0.00019178,2]
[364738121,1749223836519,-430.0,0.00019178,2]
[364738123,1749223836528,-440.0,0.00019178,2]
[364738125,1749223836537,-402.43475784,0.00019178,2]
[364738127,1749223836547,-440.0,0.00019178,2]
[364738130,1749223836556,-430.0,0.00019178,2]
[364738131,1749223836568,-440.0,0.00019178,2]
[364738133,1749223836579,-440.0,0.00019178,2]
[364738135,1749223836588,-430.0,0.00019178,2]
[364738137,1749223836598,-440.0,0.00019178,2]
[364738140,1749223836608,-440.0,0.00019178,2]
[364738142,1749223836618,-276.07627861,0.00019178,2]
[364738143,1749223836627,-440.0,0.00019178,2]
[364738146,1749223836637,-440.0,0.00019178,2]
[364738148,1749223836649,-524.71323358,0.00019178,2]
[364738150,1749223836659,-430.0,0.00019178,2]
[364738152,1749223836670,-440.0,0.00019178,2]
[364738154,1749223836680,-430.0,0.00019178,2]
[364738156,1749223836691,-430.0,0.00019178,2]
[364738158,1749223836701,-444.00667807,0.00019178,2]
[364738160,1749223836711,-440.0,0.00019178,2]
[364738162,1749223836725,-440.0,0.00019178,2]
[364738164,1749223836735,-440.0,0.00019178,2]
[364738166,1749223836744,-440.0,0.00019178,2]
[364738168,1749223836754,-440.0,0.00019178,2]
[364738170,1749223836764,-430.0,0.00019178,2]
[364738172,1749223836773,-440.86051761,0.00019178,2]
[364738174,1749223836783,-432.04492319,0.00019178,2]
[364738176,1749223836793,-440.0,0.00019178,2]
[364738178,1749223836803,-442.06678165,0.00019178,2]
[364738180,1749223836812,-440.0,0.00019178,2]
[364738182,1749223836822,-289.74675526,0.00019178,2]
[364738184,1749223836831,-444.02518276,0.00019178,2]
[364738186,1749223836841,-440.0,0.00019178,2]
[364738188,1749223836850,-440.0,0.00019178,2]
[364738190,1749223836859,-440.0,0.00019178,2]
[364738192,1749223836869,-440.0,0.00019178,2]
[364738194,1749223836878,-446.95560544,0.00019178,2]
[364738196,1749223836888,-440.0,0.00019178,2]
[364738198,1749223836898,-444.10104605,0.00019178,2]
[364738200,1749223836907,-440.0,0.00019178,2]
[364738202,1749223836916,-430.0,0.00019178,2]
[364738204,1749223836925,-440.0,0.00019178,2]
[364738206,1749223836935,-151.81383833,0.00019178,2]
[364738208,1749223836944,-502.36254079,0.00019178,2]
[364738210,1749223836953,-431.85923875,0.00019178,2]
[364738212,1749223836964,-430.23911861,0.00019178,2]
[364738214,1749223836974,-440.0,0.00019178,2]
[364738216,1749223836983,-430.40898799,0.00019178,2]
[364738218,1749223836993,-3215.6,0.00019178,2]
[364738220,1749223837002,-440.0,0.00019178,2]
[364738222,1749223837011,-440.0,0.00019178,2]
[364738224,1749223837021,-447.98450297,0.00019178,2]
[364738226,1749223837031,-157.5064907,0.00019178,2]
[364738228,1749223837042,-517.02,0.00019178,2]
[364738230,1749223837051,-440.0,0.00019178,2]
[364738232,1749223837061,-401.22413668,0.00019178,2]
[364738234,1749223837070,-440.0,0.00019178,2]
[364738236,1749223837079,-857.21,0.00019178,2]
[364738238,1749223837089,-440.0,0.00019178,2]
[364738240,1749223837099,-729.35,0.00019178,2]
[364738242,1749223837108,-438.01766789,0.00019178,2]
[364738244,1749223837118,-440.0,0.00019178,2]
[364738246,1749223837128,-440.0,0.00019178,2]
[364738248,1749223837137,-440.0,0.00019178,2]
[364738250,1749223837146,-440.0,0.00019178,2]
[364738252,1749223837155,-477.98,0.00019178,2]
[364738254,1749223837165,-440.0,0.00019178,2]
[364738255,1749223837174,-440.0,0.00019178,2]
[364738266,1749223837299,-540.25191446,0.00019178,2]
[364738268,1749223837309,-430.0,0.00019178,2]
[364738270,1749223837319,-178.58655484,0.00019178,2]
[364738272,1749223837329,-440.0,0.00019178,2]
[364738274,1749223837339,-449.1072914,0.00019178,2]
[364738275,1749223837348,-440.0,0.00019178,2]
[364738277,1749223837357,-440.0,0.00019178,2]
[364738279,1749223837367,-440.0,0.00019178,2]
[364738281,1749223837376,-440.0,0.00019178,2]
[364738283,1749223837386,-440.0,0.00019178,2]
[364738285,1749223837395,-440.0,0.00019178,2]
[364738287,1749223837405,-440.0,0.00019178,2]
[364738288,1749223837415,-440.0,0.00019178,2]
[364738290,1749223837425,-440.0,0.00019178,2]
[364738292,1749223837435,-389.36437566,0.00019178,2]
[364738294,1749223837445,-1912.42,0.00019178,2]
[364738296,1749223837455,-2359.7,0.00019178,2]
[364738298,1749223837468,-7142.79,0.00019178,2]
[364738299,1749223837477,-440.0,0.00019178,2]
[364738301,1749223837487,-430.0,0.00019178,2]
[364738303,1749223837498,-405.80632735,0.00019178,2]
[364738305,1749223837507,-440.0,0.00019178,2]
[364738307,1749223837518,-440.0,0.00019178,2]
[364738308,1749223837528,-440.0,0.00019178,2]
[364738310,1749223837538,-430.0,0.00019178,2]
[364738312,1749223837548,-3777.35,0.00019178,2]
[364738314,1749223837557,-1127.7,0.00019178,2]
[364738316,1749223837569,-440.0,0.00019178,2]
[364738317,1749223837580,-440.0,0.00019178,2]
[364738319,1749223837590,-440.0,0.00019178,2]
[364738321,1749223837600,-440.0,0.00019178,2]
[364738323,1749223837611,-440.0,0.00019178,2]
[364738325,1749223837620,-440.0,0.00019178,2]
[364738327,1749223837630,-440.0,0.00019178,2]
[364738329,1749223837639,-430.0,0.00019178,2]
[364738330,1749223837651,-426.67598338,0.00019178,2]
[364738332,1749223837661,-440.0,0.00019178,2]
[364738334,1749223837671,-440.0,0.00019178,2]
[364738336,1749223837681,-203.0017251,0.00019178,2]
[364738338,1749223837692,-440.0,0.00019178,2]
[364738340,1749223837701,-440.0,0.00019178,2]
[364738342,1749223837711,-440.0,0.00019178,2]
[364738343,1749223837721,-1196.38,0.00019178,2]
[364738345,1749223837731,-440.0,0.00019178,2]
[364738347,1749223837740,-440.0,0.00019178,2]
[364738349,1749223837750,-511.92361965,0.00019178,2]
[364738351,1749223837760,-440.0,0.00019178,2]
[364738353,1749223837770,-440.0,0.00019178,2]
[364738354,1749223837779,-440.0,0.00019178,2]
[364738356,1749223837789,-440.0,0.00019178,2]
[364738358,1749223837799,-440.0,0.00019178,2]
[364738360,1749223837808,-440.0,0.00019178,2]
[364738362,1749223837818,-420.0,0.00019178,2]
[364738364,1749223837827,-440.0,0.00019178,2]
[364738366,1749223837836,-228.92986368,0.00019178,2]
[364738368,1749223837846,-384.91384267,0.00019178,2]
[364738369,1749223837856,-420.0,0.00019178,2]
[364738371,1749223837865,-430.0,0.00019178,2]
[364738373,1749223837875,-440.0,0.00019178,2]
[364738375,1749223837884,-440.0,0.00019178,2]
[364738377,1749223837894,-440.0,0.00019178,2]
[364738379,1749223837903,-440.0,0.00019178,2]
[364738381,1749223837913,-440.0,0.00019178,2]
[364738383,1749223837923,-430.0,0.00019178,2]
[364738385,1749223837932,-214.01595344,0.00019178,2]
[364738387,1749223837942,-1802.88,0.00019178,2]
[364738388,1749223837952,-526.29435485,0.00019178,2]
[364738390,1749223837964,-440.0,0.00019178,2]
[364738392,1749223837974,-440.0,0.00019178,2]
[364738394,1749223837984,-440.0,0.00019178,2]
[364738396,1749223837995,-440.0,0.00019178,2]
[364738398,1749223838005,-440.0,0.00019178,2]
[364738400,1749223838015,-440.0,0.00019178,2]
[364738403,1749223838025,-440.0,0.00019178,2]
[364738405,1749223838035,-430.0,0.00019178,2]
[364738407,1749223838046,-440.0,0.00019178,2]
[364738409,1749223838056,-168.3934573,0.00019178,2]
[364738410,1749223838067,-562.49,0.00019178,2]
[364738412,1749223838085,-420.0,0.00019178,2]
[364738414,1749223838097,-831.48,0.00019178,2]
[364738416,1749223838107,-440.0,0.00019178,2]
[364738418,1749223838118,-440.0,0.00019178,2]
[364738420,1749223838128,-440.0,0.00019178,2]
[364738422,1749223838138,-440.0,0.00019178,2]
[364738424,1749223838147,-430.0,0.00019178,2]
[364738426,1749223838157,-440.0,0.00019178,2]
[364738427,1749223838166,-440.0,0.00019178,2]
[364738429,1749223838176,-427.50915335,0.00019178,2]
[364738431,1749223838186,-5296.18,0.00019178,2]
[364738433,1749223838195,-440.0,0.00019178,2]
[364738435,1749223838205,-440.0,0.00019178,2]
[364738437,1749223838216,-440.0,0.00019178,2]
[364738439,1749223838226,-440.0,0.00019178,2]
[364738441,1749223838236,-291.67410705,0.00019178,2]
[364738443,1749223838246,-440.0,0.00019178,2]
[364738445,1749223838256,-2045.12,0.00019178,2]
[364738446,1749223838265,-430.0,0.00019178,2]
[364738448,1749223838274,-440.0,0.00019178,2]
[364738450,1749223838284,-441.66,0.00019178,2]
[364738452,1749223838294,-440.0,0.00019178,2]
[364738454,1749223838303,-430.0,0.00019178,2]
[364738456,1749223838313,-440.0,0.00019178,2]
[364738458,1749223838322,-440.0,0.00019178,2]
[364738459,1749223838332,-1764.13,0.00019178,2]
[364738461,1749223838341,-440.0,0.00019178,2]
[364738463,1749223838350,-430.0,0.00019178,2]
[364738465,1749223838360,-430.0,0.00019178,2]
[364738467,1749223838369,-440.0,0.00019178,2]
[364738469,1749223838379,-1492.68,0.00019178,2]
[364738471,1749223838389,-1126.0,0.00019178,2]
[364738473,1749223838398,-430.0,0.00019178,2]
[364738474,1749223838407,-440.0,0.00019178,2]
[364738476,1749223838416,-403.25999873,0.00019178,2]
[364738478,1749223838425,-440.0,0.00019178,2]
[364738480,1749223838434,-440.0,0.00019178,2]
[364738482,1749223838447,-430.0,0.00019178,2]
[364738484,1749223838456,-250.48194179,0.00019178,2]
[364738485,1749223838468,-440.0,0.00019178,2]
[364738487,1749223838478,-440.0,0.00019178,2]
[364738489,1749223838487,-440.0,0.00019178,2]
[364738491,1749223838497,-440.0,0.00019178,2]
[364738493,1749223838506,-440.0,0.00019178,2]
[364738495,1749223838515,-440.0,0.00019178,2]
[364738497,1749223838524,-440.0,0.00019178,2]
[364738498,1749223838535,-505.84164683,0.00019178,2]
[364738500,1749223838545,-529.36316137,0.00019178,2]
[364738502,1749223838554,-440.0,0.00019178,2]
[364738504,1749223838564,-440.0,0.00019178,2]
[364738506,1749223838578,-440.0,0.00019178,2]
[364738508,1749223838588,-2306.82,0.00019178,2]
[364738510,1749223838598,-440.0,0.00019178,2]
[364738513,1749223838608,-440.0,0.00019178,2]
[364738516,1749223838618,-440.0,0.00019178,2]
[364738517,1749223838628,-400.0,0.00019178,2]
[364738519,1749223838637,-440.0,0.00019178,2]
[364738521,1749223838648,-440.0,0.00019178,2]
[364738523,1749223838657,-440.0,0.00019178,2]
[364738525,1749223838667,-440.0,0.00019178,2]
[364738527,1749223838676,-361.61042121,0.00019178,2]
[364738529,1749223838686,-440.0,0.00019178,2]
[364738531,1749223838696,-440.0,0.00019178,2]
[364738532,1749223838706,-440.0,0.00019178,2]
[364738534,1749223838717,-685.82,0.00019178,2]
[364738536,1749223838727,-440.0,0.00019178,2]
[364738538,1749223838736,-2874.28,0.00019178,2]
[364738540,1749223838746,-440.0,0.00019178,2]
[364738542,1749223838755,-567.85525176,0.00019178,2]
[364738544,1749223838765,-440.0,0.00019178,2]
[364738546,1749223838774,-440.0,0.00019178,2]
[364738548,1749223838784,-440.0,0.00019178,2]
[364738550,1749223838793,-3776.46,0.00019178,2]
[364738552,1749223838803,-440.0,0.00019178,2]
[364738554,1749223838813,-430.0,0.00019178,2]
[364738556,1749223838822,-281.63550722,0.00019178,2]
[364738558,1749223838832,-271.46909793,0.00019178,2]
[364738560,1749223838842,-465.99,0.00019178,2]
[364738562,1749223838853,-440.0,0.00019178,2]
[364738563,1749223838863,-431.65042904,0.00019178,2]
[364738565,1749223838872,-398.87073197,0.00019178,2]
[364738567,1749223838882,-440.0,0.00019178,2]
[364738569,1749223838891,-440.0,0.00019178,2]
[364738571,1749223838901,-366.43399899,0.00019178,2]
[364738573,1749223838910,-432.29371893,0.00019178,2]
[364738575,1749223838920,-1767.71,0.00019178,2]
[364738577,1749223838929,-440.0,0.00019178,2]
[364738578,1749223838938,-430.0,0.00019178,2]
[364738580,1749223838948,-440.0,0.00019178,2]
[364738582,1749223838958,-440.0,0.00019178,2]
[364738584,1749223838968,-455.73,0.00019178,2]
[364738586,1749223838978,-430.0,0.00019178,2]
[364738588,1749223838988,-434.43049342,0.00019178,2]
[364738590,1749223838997,-2864.87,0.00019178,2]
[364738592,1749223839005,-440.0,0.00019178,2]
[364738593,1749223839014,-440.0,0.00019178,2]
[364738595,1749223839024,-440.0,0.00019178,2]
[364738597,1749223839033,-440.0,0.00019178,2]
[364738599,1749223839043,-440.0,0.00019178,2]
[364738601,1749223839052,-440.0,0.00019178,2]
[364738603,1749223839061,-440.0,0.00019178,2]
[364738605,1749223839071,-1011.19,0.00019178,2]
[364738606,1749223839080,-440.0,0.00019178,2]
[364738608,1749223839089,-2220.42,0.00019178,2]
[364738610,1749223839098,-440.0,0.00019178,2]
[364738612,1749223839108,-440.0,0.00019178,2]
[364738614,1749223839117,-440.0,0.00019178,2]
[364738616,1749223839126,-5587.47,0.00019178,2]
[364738618,1749223839136,-500.0,0.00019178,2]
[364738620,1749223839146,-205.14797,0.00019178,2]
[364738622,1749223839155,-709.4058527,0.0001925,2]
[364738623,1749223839165,-3274.52877712,0.00019352,2]
[364738625,1749223839174,-261.1,0.0001941,2]
[364738627,1749223839184,-440.0,0.00019452,2]
[364738629,1749223839200,-155.14464599,0.00019452,2]
[364738631,1749223839214,-318.75,0.00019452,2]
[364738633,1749223839223,-564.62379007,0.00019452,2]
[364738635,1749223839232,-440.0,0.00019452,2]
[364738637,1749223839242,-440.0,0.00019452,2]
[364738639,1749223839251,-480.0,0.00019452,2]
[364738640,1749223839260,-440.0,0.00019452,2]
[364738642,1749223839270,-553.99238112,0.00019452,2]
[364738644,1749223839280,-440.0,0.00019452,2]
[364738646,1749223839290,-440.0,0.00019452,2]
[364738648,1749223839300,-440.0,0.00019452,2]
[364738650,1749223839310,-420.0,0.00019452,2]
[364738652,1749223839319,-440.0,0.00019452,2]
[364738654,1749223839329,-440.0,0.00019452,2]
[364738656,1749223839338,-440.0,0.00019452,2]
[364738658,1749223839348,-440.0,0.00019452,2]
[364738660,1749223839358,-440.0,0.00019452,2]
[364738661,1749223839367,-420.0,0.00019452,2]
[364738663,1749223839376,-440.0,0.00019452,2]
[364738665,1749223839387,-420.0,0.00019452,2]
[364738667,1749223839402,-420.09493162,0.00019452,2]
[364738669,1749223839414,-345.92763111,0.00019452,2]
[364738671,1749223839424,-394.92823211,0.00019452,2]
[364738673,1749223839434,-440.0,0.00019452,2]
[364738676,1749223839443,-200.31512728,0.00019452,2]
[364738678,1749223839454,-431.91397795,0.00019452,2]
[364738680,1749223839467,-440.0,0.00019452,2]
[364738682,1749223839476,-440.0,0.00019452,2]
[364738684,1749223839486,-440.0,0.00019452,2]
[364738686,1749223839495,-310.0,0.00019452,2]
[364738687,1749223839506,-290.0,0.00019452,2]
[364738689,1749223839516,-340.0,0.00019452,2]
[364738691,1749223839526,-300.0,0.00019452,2]
[364738693,1749223839535,-462.79762912,0.00019452,2]
[364738695,1749223839545,-440.0,0.00019452,2]
[364738697,1749223839561,-440.0,0.00019452,2]
[364738699,1749223839579,-215.9076902,0.00019452,2]
[364738701,1749223839595,-420.0,0.00019452,2]
[364738703,1749223839605,-440.0,0.00019452,2]
[364738705,1749223839615,-440.0,0.00019452,2]
[364738707,1749223839624,-440.0,0.00019452,2]
[364738709,1749223839633,-440.0,0.00019452,2]
[364738711,1749223839642,-440.0,0.00019452,2]
[364738712,1749223839652,-420.0,0.00019452,2]
[364738714,1749223839662,-440.0,0.00019452,2]
[364738715,1749223839672,-436.63812256,0.00019452,2]
[364738716,1749223839682,-440.0,0.00019452,2]
[364738717,1749223839691,-440.0,0.00019452,2]
[364738718,1749223839701,-343.55452504,0.00019452,2]
[364738719,1749223839711,-440.0,0.00019452,2]
[364738720,1749223839721,-530.0,0.00019452,2]
[364738721,1749223839731,-440.0,0.00019452,2]
[364738722,1749223839741,-440.0,0.00019452,2]
[364738724,1749223839749,-440.0,0.00019452,2]
[364738728,1749223839789,-420.0,0.00019452,2]
[364738730,1749223839799,-390.0,0.00019452,2]
[364738732,1749223839809,-440.0,0.00019452,2]
[364738733,1749223839818,-420.0,0.00019452,2]
[364738734,1749223839828,-469.21926245,0.00019452,2]
[364738735,1749223839837,-440.0,0.00019452,2]
[364738736,1749223839846,-440.0,0.00019452,2]
[364738737,1749223839856,-440.0,0.00019452,2]
[364738738,1749223839865,-440.0,0.00019452,2]
[364738739,1749223839874,-440.0,0.00019452,2]
[364738740,1749223839884,-440.0,0.00019452,2]
[364738741,1749223839894,-422.01289897,0.00019452,2]
[364738742,1749223839903,-440.0,0.00019452,2]
[364738743,1749223839913,-420.0,0.00019452,2]
[364738744,1749223839922,-440.0,0.00019452,2]
[364738745,1749223839932,-283.78166699,0.00019452,2]
[364738746,1749223839942,-440.0,0.00019452,2]
[364738747,1749223839951,-390.0,0.00019452,2]
[364738748,1749223839960,-440.0,0.00019452,2]
[364738749,1749223839971,-440.0,0.00019452,2]
[364738750,1749223839980,-440.0,0.00019452,2]
[364738751,1749223839990,-440.0,0.00019452,2]
[364738752,1749223840000,-423.55744076,0.00019452,2]
[364738753,1749223840009,-440.0,0.00019452,2]
[364738754,1749223840021,-440.0,0.00019452,2]
[364738755,1749223840030,-495.26707639,0.00019452,2]
[364738756,1749223840039,-440.0,0.00019452,2]
[364738757,1749223840049,-458.47,0.00019452,2]
[364738758,1749223840059,-421.83287138,0.00019452,2]
[364738759,1749223840068,-440.0,0.00019452,2]
[364738760,1749223840078,-494.03,0.00019452,2]
[364738761,1749223840088,-440.0,0.00019452,2]
[364738762,1749223840098,-440.0,0.00019452,2]
[364738763,1749223840108,-485.38,0.00019452,2]
[364738764,1749223840117,-382.67034022,0.00019452,2]
[364738765,1749223840126,-440.0,0.00019452,2]
[364738766,1749223840136,-433.17932937,0.00019452,2]
[364738767,1749223840146,-440.0,0.00019452,2]
[364738768,1749223840156,-440.0,0.00019452,2]
[364738769,1749223840165,-440.0,0.00019452,2]
[364738770,1749223840174,-421.66606856,0.00019452,2]
[364738771,1749223840184,-342.98139453,0.00019452,2]
[364738772,1749223840194,-440.0,0.00019452,2]
[364738773,1749223840203,-440.0,0.00019452,2]
[364738774,1749223840214,-440.0,0.00019452,2]
[364738775,1749223840224,-426.47733634,0.00019452,2]
[364738776,1749223840234,-430.0,0.00019452,2]
[364738777,1749223840244,-440.0,0.00019452,2]
[364738778,1749223840254,-440.0,0.00019452,2]
[364738779,1749223840264,-410.0,0.00019452,2]
[364738780,1749223840274,-339.5509278,0.00019452,2]
[364738781,1749223840284,-422.52827224,0.00019452,2]
[364738782,1749223840293,-430.0,0.00019452,2]
[364738783,1749223840303,-430.80457061,0.00019452,2]
[364738784,1749223840314,-607.38438298,0.00019452,2]
[364738785,1749223840324,-459.19025681,0.00019452,2]
[364738786,1749223840334,-432.83622971,0.00019452,2]
[364738788,1749223840343,-431.64640983,0.00019452,2]
[364738789,1749223840353,-427.92209317,0.00019452,2]
[364738791,1749223840363,-436.27437309,0.00019452,2]
[364738793,1749223840373,-428.96473029,0.00019452,2]
[364738794,1749223840383,-440.0,0.00019452,2]
[364738795,1749223840393,-440.0,0.00019452,2]
[364738796,1749223840402,-440.0,0.00019452,2]
[364738797,1749223840412,-440.0,0.00019452,2]
[364738798,1749223840422,-440.0,0.00019452,2]
[364738799,1749223840432,-758.37,0.00019452,2]
[364738800,1749223840442,-318.74058442,0.00019452,2]
[364738801,1749223840452,-440.0,0.00019452,2]
[364738802,1749223840462,-440.0,0.00019452,2]
[364738803,1749223840472,-477.75319019,0.00019452,2]
[364738804,1749223840482,-430.0,0.00019452,2]
[364738805,1749223840492,-421.78614331,0.00019452,2]
[364738806,1749223840502,-440.0,0.00019452,2]
[364738807,1749223840512,-440.0,0.00019452,2]
[364738808,1749223840522,-440.0,0.00019452,2]
[364738809,1749223840532,-480.43833092,0.00019452,2]
[364738810,1749223840542,-436.22524207,0.00019452,2]
[364738811,1749223840552,-440.0,0.00019452,2]
[364738812,1749223840562,-440.0,0.00019452,2]
[364738813,1749223840576,-440.0,0.00019452,2]
[364738814,1749223840586,-440.0,0.00019452,2]
[364738815,1749223840596,-440.0,0.00019452,2]
[364738816,1749223840605,-346.61019358,0.00019452,2]
[364738817,1749223840616,-431.53918888,0.00019452,2]
[364738818,1749223840626,-747.21,0.00019452,2]
[364738819,1749223840637,-440.0,0.00019452,2]
[364738820,1749223840647,-197.64937232,0.00019452,2]
[364738821,1749223840657,-232.50642953,0.00019452,2]
[364738822,1749223840667,-258.23448006,0.00019452,2]
[364738823,1749223840677,-434.27300045,0.00019452,2]
[364738824,1749223840687,-440.0,0.00019452,2]
[364738825,1749223840698,-440.0,0.00019452,2]
[364738826,1749223840708,-430.0,0.00019452,2]
[364738827,1749223840718,-411.57887136,0.00019452,2]
[364738828,1749223840728,-263.25698915,0.00019452,2]
[364738829,1749223840738,-433.07815214,0.00019452,2]
[364738830,1749223840748,-425.91417754,0.00019452,2]
[364738831,1749223840758,-420.0,0.00019452,2]
[364738832,1749223840767,-440.0,0.00019452,2]
[364738833,1749223840776,-434.87761554,0.00019452,2]
[364738834,1749223840786,-440.0,0.00019452,2]
[364738835,1749223840796,-420.0,0.00019452,2]
[364738836,1749223840806,-431.25252842,0.00019452,2]
[364738837,1749223840816,-428.68155314,0.00019452,2]
[364738838,1749223840825,-440.0,0.00019452,2]
[364738839,1749223840835,-431.62163677,0.00019452,2]
[364738840,1749223840844,-440.0,0.00019452,2]
[364738841,1749223840854,-367.27002997,0.00019452,2]
[364738842,1749223840864,-430.0,0.00019452,2]
[364738843,1749223840873,-440.0,0.00019452,2]
[364738844,1749223840883,-440.0,0.00019452,2]
[364738845,1749223840893,-440.0,0.00019452,2]
[364738846,1749223840903,-440.0,0.00019452,2]
[364738847,1749223840912,-440.0,0.00019452,2]
[364738848,1749223840922,-440.0,0.00019452,2]
[364738849,1749223840932,-430.0,0.00019452,2]
[364738850,1749223840941,-440.0,0.00019452,2]
[364738851,1749223840951,-440.0,0.00019452,2]
[364738852,1749223840961,-440.0,0.00019452,2]
[364738853,1749223840971,-415.41311871,0.00019452,2]
[364738854,1749223840981,-440.0,0.00019452,2]
[364738855,1749223840991,-440.0,0.00019452,2]
[364738856,1749223841001,-432.78320036,0.00019452,2]
[364738857,1749223841011,-440.0,0.00019452,2]
[364738858,1749223841021,-3215.6,0.00019452,2]
[364738859,1749223841031,-440.0,0.00019452,2]
[364738860,1749223841040,-517.02,0.00019452,2]
[364738861,1749223841050,-440.0,0.00019452,2]
[364738862,1749223841059,-440.0,0.00019452,2]
[364738863,1749223841069,-857.21,0.00019452,2]
[364738864,1749223841079,-440.0,0.00019452,2]
[364738865,1749223841089,-729.35,0.00019452,2]
[364738866,1749223841100,-440.0,0.00019452,2]
[364738867,1749223841110,-440.0,0.00019452,2]
[364738868,1749223841120,-423.75853346,0.00019452,2]
[364738869,1749223841129,-216.01715235,0.00019452,2]
[364738870,1749223841139,-477.98,0.00019452,2]
[364738871,1749223841149,-440.0,0.00019452,2]
[364738872,1749223841158,-440.0,0.00019452,2]
[364738873,1749223841168,-440.0,0.00019452,2]
[364738874,1749223841178,-440.0,0.00019452,2]
[364738875,1749223841187,-240.0,0.00019452,2]
[364738876,1749223841197,-440.0,0.00019452,2]
[364738877,1749223841206,-420.0,0.00019452,2]
[364738878,1749223841216,-440.0,0.00019452,2]
[364738879,1749223841225,-440.0,0.00019452,2]
[364738880,1749223841235,-440.0,0.00019452,2]
[364738881,1749223841245,-440.0,0.00019452,2]
[364738882,1749223841254,-440.0,0.00019452,2]
[364738883,1749223841264,-1912.42,0.00019452,2]
[364738884,1749223841274,-2359.7,0.00019452,2]
[364738885,1749223841283,-7142.79,0.00019452,2]
[364738886,1749223841293,-440.0,0.00019452,2]
[364738887,1749223841303,-447.38307187,0.00019452,2]
[364738888,1749223841313,-440.0,0.00019452,2]
[364738889,1749223841323,-440.0,0.00019452,2]
[364738890,1749223841334,-3777.35,0.00019452,2]
[364738891,1749223841344,-440.0,0.00019452,2]
[364738892,1749223841354,-440.0,0.00019452,2]
[364738893,1749223841365,-1127.7,0.00019452,2]
[364738895,1749223841375,-440.0,0.00019452,2]
[364738897,1749223841385,-440.0,0.00019452,2]
[364738899,1749223841395,-440.0,0.00019452,2]
[364738900,1749223841405,-440.0,0.00019452,2]
[364738902,1749223841415,-420.0,0.00019452,2]
[364738904,1749223841424,-440.0,0.00019452,2]
[364738905,1749223841434,-440.0,0.00019452,2]
[364738907,1749223841443,-420.0,0.00019452,2]
[364738909,1749223841453,-420.51105847,0.00019452,2]
[364738910,1749223841463,-440.0,0.00019452,2]
[364738911,1749223841474,-1196.38,0.00019452,2]
[364738912,1749223841484,-440.0,0.00019452,2]
[364738913,1749223841494,-440.0,0.00019452,2]